bitfinex/quotes_SOLUSD_20241031
["timestamp","ask_amount","ask_price","bid_price","bid_amount"]
[1730393146050,12.094038,170.15,170.1,23.776884]
[1730393146254,12.094038,170.14,170.1,23.776884]
[1730393146451,12.094038,170.12,170.07,33.391638]
[1730393146653,12.094038,170.12,170.07,15.4177]
[1730393147455,12.094038,170.11,170.05,21.04027469]
[1730393147631,12.094038,170.08,170.02,12.094038]
[1730393147956,0.1,170.13,170.01,14.7044]
[1730393147957,12.094038,170.07,170.01,26.798438]
[1730393148449,12.094038,170.07,170.02,12.094038]
[1730393149144,5.8802,170.06,170.02,12.094038]
[1730393149333,5.8802,170.06,170.01,26.798438]
[1730393150036,17.974238,170.06,170.01,26.798438]
[1730393150358,12.094038,170.04,169.98,27.567438]
[1730393150649,12.094038,170.05,169.99,12.094038]
[1730393151036,12.094038,170.04,169.98,27.567438]
[1730393151363,5.8813,170.03,169.98,27.567438]
[1730393151542,17.975338,170.03,169.98,27.567438]
[1730393151929,12.094038,170.02,169.96,12.094038]
[1730393152130,12.094038,170.0,169.95,12.094038]
[1730393152564,12.094038,170.0,169.94,49.295338]
[1730393152933,12.094038,170.0,169.95,12.094038]
[1730393153441,17.976338,170.01,169.96,23.776884]
[1730393154054,5.8823,170.01,169.96,35.870922]
[1730393155356,17.976338,170.01,169.96,35.870922]
[1730393156954,12.094038,170.0,169.95,12.094038]
[1730393157160,17.976138,170.01,169.96,12.094038]
[1730393157361,17.976138,170.01,169.97,23.776884]
[1730393158845,12.094038,170.0,169.96,23.776884]
[1730393159742,12.094038,170.01,169.96,35.870922]
[1730393160363,12.094038,170.0,169.96,23.776884]
[1730393160860,12.094038,169.97,169.92,12.094038]
[1730393161074,12.094038,169.98,169.92,12.094038]
[1730393161360,20.6833,170.04,169.95,12.094038]
[1730393161361,12.094038,170.0,169.95,12.094038]
[1730393161944,12.094038,170.01,169.95,12.094038]
[1730393162766,12.094038,170.02,169.97,12.094038]
[1730393163864,12.094038,170.01,169.96,35.870922]
[1730393164171,5.8823,170.0,169.96,35.870922]
[1730393164341,5.8823,170.0,169.96,23.776884]
[1730393164342,17.976338,170.0,169.96,23.776884]
[1730393164548,12.094038,169.99,169.96,23.776884]
[1730393165266,17.976338,170.0,169.96,23.776884]
[1730393165444,5.8823,170.0,169.96,23.776884]
[1730393165767,17.976338,170.0,169.96,23.776884]
[1730393166443,5.8823,170.0,169.96,23.776884]
[1730393167177,12.094038,170.0,169.96,23.776884]
[1730393168083,12.094038,170.02,169.97,12.094038]
[1730393168972,5.8813,170.03,169.99,12.094038]
[1730393169151,12.094038,170.09,170.02,12.094038]
[1730393169352,12.094038,170.09,170.03,12.094038]
[1730393169962,12.094038,170.08,170.03,12.094038]
[1730393170163,5.8799,170.07,170.02,12.094038]
[1730393170353,5.8799,170.07,170.03,23.776884]
[1730393171157,12.094038,170.09,170.04,23.776884]
[1730393171375,12.094038,170.09,170.04,35.870922]
[1730393171574,5.8788,170.1,170.06,12.094038]
[1730393171881,5.8788,170.1,170.05,12.094038]
[1730393172480,12.094038,170.09,170.04,41.751722]
[1730393172659,12.094038,170.09,170.04,35.870922]
[1730393173476,12.094038,170.09,170.04,23.776884]
[1730393173780,17.972838,170.1,170.04,35.870922]
[1730393174080,12.094038,170.08,170.04,23.776884]
[1730393176072,16.6595,170.13,170.07,12.094038]
[1730393176073,17.972038,170.13,170.07,12.094038]
[1730393176295,12.094038,170.13,170.08,35.870922]
[1730393176794,12.094038,170.12,170.08,23.776884]
[1730393177491,12.094038,170.14,170.08,41.750322]
[1730393177784,12.094038,170.14,170.09,12.094038]
[1730393177982,5.8768,170.16,170.1,35.870922]
[1730393177983,12.094038,170.15,170.1,35.870922]
[1730393178680,5.8766,170.17,170.12,12.094038]
[1730393178886,5.8766,170.17,170.13,23.776884]
[1730393179395,17.970638,170.17,170.13,23.776884]
[1730393179766,17.970638,170.17,170.12,23.776884]
[1730393180267,12.094038,170.15,170.11,23.776884]
[1730393180686,12.094038,170.15,170.1,35.870922]
[1730393180884,12.094038,170.16,170.12,23.776884]
[1730393181288,12.094038,170.16,170.11,23.776884]
[1730393181586,12.094038,170.16,170.11,12.094038]
[1730393181790,17.970938,170.16,170.12,23.776884]
[1730393182174,12.094038,170.15,170.11,23.776884]
[1730393182804,12.094038,170.16,170.11,35.870922]
[1730393183094,12.094038,170.15,170.11,23.776884]
[1730393183989,17.971238,170.15,170.11,23.776884]
[1730393184165,17.971238,170.15,170.08,15.4573]
[1730393184166,12.094038,170.14,170.08,33.430638]
[1730393184364,12.094038,170.12,170.08,15.4573]
[1730393185100,5.8772,170.15,170.1,12.094038]
[1730393185101,17.971238,170.15,170.1,12.094038]
[1730393185295,17.971238,170.15,170.09,12.094038]
[1730393185589,12.094038,170.14,170.09,12.094038]
[1730393185887,12.094038,170.14,170.1,23.776884]
[1730393188102,12.094038,170.12,170.08,15.4573]
[1730393188679,12.094038,170.11,170.07,20.0]
[1730393188992,12.094038,170.1,170.05,38.746538]
[1730393189168,12.094038,170.1,170.05,26.6525]
[1730393189573,12.094038,170.1,170.05,32.675438]
[1730393189780,17.972638,170.11,170.05,32.675438]
[1730393190685,21.2022,170.16,170.06,23.776884]
[1730393190686,12.094038,170.1,170.06,23.776884]
[1730393190895,17.972938,170.1,170.06,23.776884]
[1730393191079,5.8789,170.1,170.06,23.776884]
[1730393191683,5.8789,170.1,170.06,29.657084]
[1730393192196,5.8789,170.1,170.06,35.870922]
[1730393192785,5.8789,170.1,170.06,23.776884]
[1730393192973,12.094038,170.1,170.06,23.776884]
[1730393194703,12.094038,170.11,170.06,23.776884]
[1730393195199,12.094038,170.1,170.06,23.776884]
[1730393196299,12.094038,170.11,170.06,23.776884]
[1730393196988,12.094038,170.12,170.07,12.094038]
[1730393197405,5.8785,170.11,170.07,12.094038]
[1730393197902,17.972538,170.11,170.06,38.477484]
[1730393198110,17.972538,170.11,170.06,50.571522]
[1730393199087,17.972538,170.11,170.06,38.477484]
[1730393199398,17.972538,170.11,170.06,44.357684]
[1730393200091,17.972538,170.11,170.06,23.776884]
[1730393200092,12.094038,170.1,170.06,23.776884]
[1730393200295,12.094038,170.09,170.05,23.776884]
[1730393200805,12.094038,170.07,170.03,20.5841]
[1730393201010,12.094038,170.08,170.03,20.5841]
[1730393201215,12.094038,170.09,170.03,32.678138]
[1730393201900,17.973538,170.09,170.03,32.678138]
[1730393202211,17.973538,170.09,170.04,23.776884]
[1730393202505,13.63005272,170.09,170.04,23.776884]
[1730393203194,7.75055272,170.12,170.06,31.52743672]
[1730393203399,7.75055272,170.13,170.08,23.776884]
[1730393203983,7.75055272,170.12,170.08,23.776884]
[1730393204194,7.75055272,170.12,170.07,23.776884]
[1730393204406,13.62895272,170.12,170.07,29.656684]
[1730393204702,17.98461304,170.12,170.07,29.656684]
[1730393206609,17.98461304,170.12,170.07,44.356484]
[1730393206908,17.98461304,170.12,170.07,56.46269704]
[1730393207289,17.98461304,170.12,170.07,48.40883834]
[1730393207491,12.10621304,170.11,170.07,36.3026253]
[1730393207904,17.98491304,170.11,170.07,36.3026253]
[1730393208099,12.10621304,170.11,170.07,36.3026253]
[1730393212201,17.98451304,170.12,170.07,36.3026253]
[1730393213218,12.10621304,170.13,170.07,48.40883834]
[1730393213936,12.10621304,170.12,170.07,36.3026253]
[1730393214713,17.98471304,170.12,170.07,36.3026253]
[1730393215417,12.10621304,170.11,170.07,36.3026253]
[1730393215919,17.98481304,170.11,170.06,29.657084]
[1730393216105,12.10621304,170.1,170.04,26.80811304]
[1730393216418,12.10621304,170.1,170.04,32.68891304]
[1730393217104,12.10621304,170.1,170.05,12.10621304]
[1730393217342,5.8792,170.09,170.05,12.10621304]
[1730393217711,5.8792,170.09,170.05,23.776884]
[1730393218222,17.98541304,170.09,170.05,23.776884]
[1730393218915,5.8792,170.09,170.05,29.657384]
[1730393220510,12.10621304,170.11,170.05,41.76359704]
[1730393220700,12.10621304,170.1,170.05,29.657384]
[1730393221301,12.10621304,170.09,170.05,29.657384]
[1730393221599,17.98551304,170.09,170.05,23.776884]
[1730393221916,12.10621304,170.07,170.02,12.10621304]
[1730393222120,12.10621304,170.08,170.02,12.10621304]
[1730393222290,29.3878,170.14,170.02,12.10621304]
[1730393222291,13.91269556,170.16,170.06,0.12549]
[1730393222490,5.8771,170.15,170.1,12.10621304]
[1730393222689,17.98301304,170.16,170.1,12.10621304]
[1730393222920,5.8768,170.16,170.11,12.10621304]
[1730393223122,12.10621304,170.14,170.08,35.88309704]
[1730393223322,12.10621304,170.13,170.08,23.776884]
[1730393223502,17.98371304,170.14,170.08,41.76239704]
[1730393224226,12.10621304,170.13,170.08,41.76239704]
[1730393224395,17.98371304,170.14,170.08,41.76239704]
[1730393224596,5.8775,170.14,170.09,12.10621304]
[1730393224909,17.98341304,170.15,170.09,12.10621304]
[1730393225396,12.10621304,170.13,170.08,44.355084]
[1730393225601,12.10621304,170.14,170.08,26.80511304]
[1730393225804,12.10621304,170.14,170.09,12.10621304]
[1730393226099,17.98341304,170.15,170.09,12.10621304]
[1730393226303,12.10621304,170.16,170.1,12.10621304]
[1730393226624,7.74546737,170.15,170.09,31.52235137]
[1730393226921,7.74546737,170.16,170.1,7.74546737]
[1730393227601,5.8771,170.15,170.1,13.62426737]
[1730393228826,7.74546737,170.17,170.1,13.62426737]
[1730393229023,13.62226737,170.16,170.1,13.62426737]
[1730393230304,7.74546737,170.15,170.1,5.8788]
[1730393230707,7.74546737,170.16,170.1,13.62426737]
[1730393230915,7.74546737,170.17,170.11,31.52235137]
[1730393231420,7.74546737,170.16,170.11,23.776884]
[1730393231717,5.8757,170.19,170.14,7.74546737]
[1730393231927,7.74546737,170.18,170.13,23.776884]
[1730393232127,7.74546737,170.17,170.11,31.52235137]
[1730393232298,13.62206737,170.17,170.12,5.8782]
[1730393232500,13.62206737,170.17,170.13,23.776884]
[1730393232701,9.0,170.2,170.16,7.74546737]
[1730393232897,9.0,170.2,170.18,7.74546737]
[1730393233103,9.0,170.2,170.16,7.74546737]
[1730393233323,14.8754,170.2,170.15,23.776884]
[1730393233515,14.8754,170.2,170.1,21.8401]
[1730393233720,29.564,170.2,170.1,15.9615]
[1730393233926,29.564,170.2,170.08,31.38845036]
[1730393233927,7.74546737,170.13,170.08,31.38845036]
[1730393234227,7.74546737,170.12,170.08,23.64298299]
[1730393234610,13.62346737,170.13,170.08,23.64298299]
[1730393235729,7.74546737,170.12,170.08,8.94488299]
[1730393235937,7.74546737,170.11,170.08,8.94488299]
[1730393236506,12.10696356,170.12,170.08,8.94488299]
[1730393236905,12.10696356,170.14,170.08,26.93124655]
[1730393237211,17.98376356,170.16,170.11,35.88384756]
[1730393237428,17.98376356,170.16,170.11,12.10696356]
[1730393237623,17.98376356,170.16,170.11,23.776884]
[1730393238536,5.8768,170.16,170.11,41.76234756]
[1730393238922,17.98376356,170.16,170.11,41.76234756]
[1730393239521,12.10696356,170.17,170.11,41.76234756]
[1730393239924,12.10696356,170.17,170.11,56.45864756]
[1730393240129,12.10696356,170.16,170.11,56.45864756]
[1730393240815,12.10696356,170.17,170.11,56.45864756]
[1730393241031,12.10696356,170.17,170.12,12.10696356]
[1730393241215,12.10696356,170.18,170.13,12.10696356]
[1730393241912,21.10696356,170.2,170.15,12.10696356]
[1730393242237,9.0,170.2,170.16,12.10696356]
[1730393243131,9.0,170.2,170.17,35.88384756]
[1730393243636,9.0,170.2,170.17,23.776884]
[1730393245243,9.0,170.2,170.18,5.8761]
[1730393248938,9.0,170.2,170.19,12.10696356]
[1730393249243,9.0,170.2,170.19,35.88384756]
[1730393250925,9.0,170.2,170.19,41.75954756]
[1730393251235,9.0,170.2,170.19,29.652584]
[1730393251427,9.0,170.2,170.19,41.75954756]
[1730393252038,9.0,170.2,170.19,23.776884]
[1730393252343,9.0,170.2,170.19,35.88384756]
[1730393253625,9.0,170.2,170.19,41.75954756]
[1730393253827,9.0,170.2,170.19,62.01052756]
[1730393254042,9.0,170.2,170.19,41.75954756]
[1730393255037,9.0,170.2,170.19,35.88384756]
[1730393255335,9.0,170.2,170.19,12.10696356]
[1730393256217,9.0,170.2,170.19,17.98266356]
[1730393256623,9.0,170.2,170.19,41.75954756]
[1730393257551,9.0,170.2,170.19,62.13601756]
[1730393258337,9.0,170.2,170.19,90.72608112]
[1730393258524,9.0,170.2,170.19,105.1711086]
[1730393258727,9.0,170.2,170.19,105.2711086]
[1730393260130,0.599415,170.29,170.21,0.1]
[1730393260322,0.599415,170.29,170.27,7.73179092]
[1730393260724,0.599415,170.29,170.26,7.73179092]
[1730393261041,0.599415,170.29,170.26,23.776884]
[1730393261647,0.599415,170.29,170.26,37.38197492]
[1730393264942,0.599415,170.29,170.26,29.650184]
[1730393265333,0.599415,170.29,170.26,23.776884]
[1730393265929,6.471815,170.29,170.26,23.776884]
[1730393266640,7.73179092,170.28,170.23,7.73179092]
[1730393267246,14.20350592,170.29,170.24,7.73179092]
[1730393268359,7.73179092,170.28,170.23,7.73179092]
[1730393268648,7.73179092,170.25,170.2,28.29579092]
[1730393268854,7.73179092,170.25,170.2,22.42039092]
[1730393269055,7.73179092,170.24,170.19,7.73179092]
[1730393269555,13.60609092,170.24,170.19,7.73179092]
[1730393270561,13.60609092,170.24,170.2,23.776884]
[1730393271236,5.8743,170.24,170.2,23.776884]
[1730393271438,5.8743,170.24,170.2,31.50867492]
[1730393272060,5.873,170.27,170.22,7.73179092]
[1730393272236,7.73179092,170.26,170.23,23.776884]
[1730393272641,13.60519092,170.26,170.22,23.776884]
[1730393272951,7.73179092,170.24,170.19,13.60739092]
[1730393273129,7.73179092,170.24,170.2,23.776884]
[1730393274056,7.73179092,170.25,170.2,31.50867492]
[1730393274350,13.60519092,170.26,170.2,31.50867492]
[1730393275433,7.73179092,170.25,170.2,23.776884]
[1730393275948,5.874,170.24,170.2,31.50867492]
[1730393277332,7.73179092,170.26,170.2,31.50867492]
[1730393277543,13.60549092,170.25,170.2,23.776884]
[1730393277834,7.73179092,170.24,170.2,23.776884]
[1730393278052,5.8737,170.25,170.16,15.3947]
[1730393278053,7.73179092,170.22,170.17,7.73179092]
[1730393278957,5.8737,170.25,170.18,7.73179092]
[1730393278958,7.73179092,170.24,170.18,7.73179092]
[1730393279261,5.8737,170.25,170.2,7.73179092]
[1730393279437,7.73179092,170.26,170.21,23.776884]
[1730393279642,5.873,170.27,170.22,7.73179092]
[1730393280253,13.60479092,170.27,170.21,37.38357492]
[1730393280556,13.60479092,170.27,170.21,31.50867492]
[1730393280872,7.73179092,170.26,170.21,23.776884]
[1730393281051,7.73179092,170.24,170.18,7.73179092]
[1730393281237,7.73179092,170.23,170.18,7.73179092]
[1730393281433,13.60649092,170.23,170.17,13.60819092]
[1730393281868,7.73179092,170.26,170.2,7.73179092]
[1730393282159,7.73179092,170.23,170.18,7.73179092]
[1730393282655,7.73179092,170.23,170.17,28.29929092]
[1730393283064,5.8747,170.22,170.18,31.50867492]
[1730393284067,5.8747,170.22,170.18,23.776884]
[1730393284444,7.73179092,170.22,170.18,23.776884]
[1730393285562,13.60659092,170.22,170.18,23.776884]
[1730393285743,5.8748,170.22,170.18,23.776884]
[1730393286763,7.73179092,170.23,170.18,29.652784]
[1730393287760,13.60639092,170.23,170.18,29.652784]
[1730393288850,7.73179092,170.21,170.16,15.3947]
[1730393289047,7.73179092,170.21,170.15,13.60889092]
[1730393289664,7.73179092,170.2,170.14,7.73179092]
[1730393289978,7.73179092,170.2,170.14,13.60919092]
[1730393290162,7.73179092,170.2,170.15,23.776884]
[1730393290475,7.73179092,170.17,170.11,23.77619092]
[1730393290766,7.73179092,170.17,170.12,5.8781]
[1730393291065,5.8768,170.16,170.12,5.8781]
[1730393291271,13.60829092,170.17,170.11,23.77619092]
[1730393291572,7.73179092,170.14,170.09,14.82331547]
[1730393291868,7.73179092,170.12,170.07,36.8252]
[1730393292077,7.73179092,170.13,170.07,44.55699092]
[1730393293958,5.8777,170.14,170.09,7.73179092]
[1730393294570,7.73179092,170.15,170.1,7.73179092]
[1730393294868,13.60899092,170.15,170.1,7.73179092]
[1730393295056,13.60899092,170.15,170.1,13.61059092]
[1730393295260,13.60899092,170.15,170.1,5.8788]
[1730393295882,13.60899092,170.15,170.09,7.73179092]
[1730393296173,7.73179092,170.14,170.09,5.8791]
[1730393297573,13.60929092,170.14,170.09,5.8791]
[1730393299072,7.73179092,170.14,170.09,20.5772]
[1730393299577,13.60899092,170.15,170.09,28.30899092]
[1730393301078,7.73179092,170.17,170.11,7.73179092]
[1730393301658,7.73179092,170.16,170.1,31.50867492]
[1730393302964,7.73179092,170.14,170.11,5.8785]
[1730393303678,7.73179092,170.12,170.07,20.5796]
[1730393303881,7.73179092,170.11,170.07,44.356484]
[1730393304076,7.73179092,170.09,170.05,5.8806]
[1730393305581,7.73179092,170.09,170.05,20.5821]
[1730393306377,7.73179092,170.12,170.06,7.73179092]
[1730393306683,13.60929092,170.14,170.08,7.73179092]
[1730393306981,13.60929092,170.14,170.09,5.8792]
[1730393307665,13.60929092,170.14,170.09,13.61099092]
[1730393308475,13.60929092,170.14,170.08,22.43059092]
[1730393308683,7.73179092,170.14,170.08,22.43059092]
[1730393308986,7.73179092,170.14,170.09,7.73179092]
[1730393309284,7.73179092,170.13,170.08,22.43059092]
[1730393310383,7.73179092,170.13,170.08,28.31009092]
[1730393310566,13.60959092,170.13,170.08,28.31009092]
[1730393310766,5.8778,170.13,170.08,28.31009092]
[1730393311185,13.60959092,170.13,170.08,28.31009092]
[1730393311886,7.73179092,170.12,170.08,20.5783]
[1730393314083,7.73179092,170.15,170.09,7.73179092]
[1730393314761,7.73179092,170.16,170.1,7.73179092]
[1730393315990,7.73179092,170.15,170.1,23.776884]
[1730393316161,7.73179092,170.14,170.1,23.776884]
[1730393316464,7.73179092,170.15,170.1,23.776884]
[1730393317285,7.73179092,170.14,170.09,28.30889092]
[1730393319080,7.73179092,170.13,170.09,20.5771]
[1730393319285,13.60939092,170.14,170.09,20.5771]
[1730393320393,7.73179092,170.14,170.09,20.5771]
[1730393320789,7.73179092,170.17,170.11,7.73179092]
[1730393321099,7.73179092,170.17,170.12,7.73179092]
[1730393321803,13.60819092,170.17,170.12,13.60969092]
[1730393322297,13.60819092,170.17,170.12,5.8779]
[1730393322679,7.73179092,170.16,170.12,5.8779]
[1730393322882,13.60869092,170.16,170.12,5.8779]
[1730393324099,13.60869092,170.16,170.11,14.6957]
[1730393324285,13.60869092,170.16,170.11,20.5742]
[1730393326293,13.60829092,170.17,170.12,7.73179092]
[1730393326792,13.60829092,170.17,170.11,28.30599092]
[1730393327101,7.73179092,170.16,170.11,28.30599092]
[1730393328102,7.73179092,170.16,170.11,20.5742]
[1730393330282,13.60859092,170.16,170.11,20.5742]
[1730393331280,7.73179092,170.17,170.12,7.73179092]
[1730393331783,7.73179092,170.17,170.11,28.30599092]
[1730393331988,7.73179092,170.16,170.11,28.30599092]
[1730393332381,13.60859092,170.16,170.11,28.30599092]
[1730393332575,5.8768,170.16,170.11,28.30599092]
[1730393332792,13.60829092,170.17,170.11,28.30599092]
[1730393332996,7.73179092,170.17,170.11,28.30599092]
[1730393333393,7.73179092,170.16,170.11,28.30599092]
[1730393337197,13.60879092,170.16,170.11,28.30599092]
[1730393337796,7.73179092,170.15,170.11,20.5742]
[1730393338810,7.73179092,170.14,170.11,14.6957]
[1730393339311,7.73179092,170.12,170.08,14.6988]
[1730393339511,7.73179092,170.11,170.08,14.6988]
[1730393339886,7.73179092,170.12,170.08,14.6988]
[1730393340292,7.73179092,170.12,170.08,20.5783]
[1730393340598,13.61009092,170.12,170.08,20.5783]
[1730393340995,7.73179092,170.1,170.05,23.86799092]
[1730393341212,7.73179092,170.08,170.04,14.7023]
[1730393341719,7.73179092,170.09,170.04,22.43409092]
[1730393342301,13.61109092,170.09,170.04,28.31499092]
[1730393343323,15.11,170.13,170.04,28.31499092]
[1730393343324,7.73179092,170.1,170.05,31.50867492]
[1730393343819,7.73179092,170.12,170.07,7.73179092]
[1730393344520,7.73179092,170.12,170.08,20.5784]
[1730393346421,7.73179092,170.12,170.08,14.6989]
[1730393346613,7.73179092,170.11,170.08,14.6989]
[1730393348023,7.73179092,170.12,170.08,14.6989]
[1730393348932,7.73179092,170.13,170.08,22.43069092]
[1730393349116,7.73179092,170.14,170.09,7.73179092]
[1730393349504,7.73179092,170.17,170.11,7.73179092]
[1730393350121,13.60819092,170.18,170.12,7.73179092]
[1730393350423,7.73179092,170.15,170.1,7.73179092]
[1730393350626,7.73179092,170.16,170.11,7.73179092]
[1730393351006,7.73179092,170.16,170.12,5.8782]
[1730393351915,7.73179092,170.17,170.12,20.5737]
[1730393352903,7.73179092,170.17,170.12,28.30549092]
[1730393353129,7.73179092,170.18,170.13,7.73179092]
[1730393353825,7.73179092,170.17,170.12,28.30549092]
[1730393355629,7.73179092,170.17,170.11,23.776884]
[1730393355630,7.73179092,170.14,170.11,23.776884]
[1730393355822,7.73179092,170.13,170.08,30.87939092]
[1730393356133,7.73179092,170.13,170.08,13.61129092]
[1730393356434,7.73179092,170.13,170.08,5.8795]
[1730393356737,7.73179092,170.12,170.08,5.8795]
[1730393356942,7.73179092,170.13,170.08,5.8795]
[1730393357313,7.73179092,170.13,170.08,20.5784]
[1730393357618,7.73179092,170.12,170.08,14.6989]
[1730393357937,7.73179092,170.13,170.08,28.31019092]
[1730393358631,7.73179092,170.14,170.08,28.31019092]
[1730393358929,7.73179092,170.16,170.11,7.73179092]
[1730393359106,5.8768,170.16,170.12,7.73179092]
[1730393360039,5.8768,170.16,170.11,13.60999092]
[1730393360233,7.73179092,170.16,170.11,13.60999092]
[1730393360527,7.73179092,170.15,170.11,5.8782]
[1730393361631,7.73179092,170.16,170.11,13.60999092]
[1730393361937,7.73179092,170.16,170.11,28.30629092]
[1730393362233,7.73179092,170.18,170.12,7.73179092]
[1730393362418,7.73179092,170.17,170.12,7.73179092]
[1730393362622,7.73179092,170.16,170.11,28.30629092]
[1730393363335,7.73179092,170.16,170.11,20.5745]
[1730393364120,13.60859092,170.16,170.11,20.5745]
[1730393368437,5.8768,170.16,170.07,7.73179092]
[1730393368643,7.73179092,170.12,170.07,7.73179092]
[1730393368944,7.73179092,170.13,170.07,7.73179092]
[1730393369249,7.73179092,170.12,170.07,7.73179092]
[1730393369548,7.73179092,170.12,170.08,5.8795]
[1730393369743,7.73179092,170.13,170.08,5.8795]
[1730393369919,7.73179092,170.13,170.08,28.31019092]
[1730393371028,7.73179092,170.13,170.08,22.43069092]
[1730393371222,7.73179092,170.12,170.08,14.6989]
[1730393371746,7.73179092,170.11,170.08,14.6989]
[1730393373445,13.61019092,170.12,170.08,14.6989]
[1730393373828,5.8784,170.12,170.08,14.6989]
[1730393374029,5.8784,170.12,170.08,20.5784]
[1730393375130,7.73179092,170.12,170.08,20.5784]
[1730393378555,13.60999092,170.12,170.08,20.5784]
[1730393381262,7.73179092,170.12,170.08,20.5784]
[1730393383364,7.73179092,170.15,170.09,31.50867492]
[1730393383742,7.73179092,170.15,170.1,7.73179092]
[1730393383942,5.8771,170.16,170.09,23.776884]
[1730393383943,13.60829092,170.17,170.12,7.73179092]
[1730393384458,13.60789092,170.18,170.12,7.73179092]
[1730393385247,13.60789092,170.18,170.13,5.8778]
[1730393385640,7.73179092,170.17,170.13,5.8778]
[1730393386366,13.60789092,170.18,170.13,5.8778]
[1730393386563,13.60789092,170.18,170.13,20.5724]
[1730393386771,7.73179092,170.19,170.14,7.73179092]
[1730393387066,7.73179092,170.21,170.15,7.73179092]
[1730393387252,7.73179092,170.19,170.14,23.776884]
[1730393387570,7.73179092,170.2,170.14,31.50867492]
[1730393387875,7.73179092,170.19,170.13,28.30419092]
[1730393388048,7.73179092,170.19,170.14,7.73179092]
[1730393388445,13.60729092,170.2,170.14,7.73179092]
[1730393389146,7.73179092,170.19,170.15,5.8771]
[1730393390068,13.60729092,170.2,170.15,5.8771]
[1730393391043,7.73179092,170.19,170.15,5.8771]
[1730393391550,16.1067,170.23,170.15,5.8771]
[1730393391551,7.73179092,170.18,170.15,5.8771]
[1730393391875,7.73179092,170.19,170.15,5.8771]
[1730393392566,7.73179092,170.19,170.14,44.348084]
[1730393394274,7.73179092,170.18,170.14,44.348084]
[1730393394971,7.73179092,170.19,170.14,44.348084]
[1730393395363,7.73179092,170.2,170.14,52.07987492]
[1730393395758,7.73179092,170.19,170.14,44.348084]
[1730393395953,7.73179092,170.2,170.14,52.07987492]
[1730393396265,7.73179092,170.21,170.16,23.776884]
[1730393396466,11.99824884,170.25,170.2,7.73179092]
[1730393396670,13.60559092,170.25,170.2,7.73179092]
[1730393396858,13.60559092,170.25,170.19,7.73179092]
[1730393397052,13.60559092,170.25,170.2,23.776884]
[1730393397252,7.73179092,170.23,170.18,7.73179092]
[1730393397454,13.60629092,170.23,170.19,23.776884]
[1730393400883,5.8745,170.23,170.19,23.776884]
[1730393401076,7.73179092,170.25,170.19,37.38427492]
[1730393402267,7.73179092,170.23,170.19,29.652484]
[1730393402487,7.73179092,170.23,170.18,7.73179092]
[1730393403172,7.73179092,170.23,170.18,23.776884]
[1730393403379,7.73179092,170.23,170.18,31.50867492]
[1730393403980,13.60639092,170.23,170.18,37.38457492]
[1730393407363,13.60639092,170.23,170.18,29.652784]
[1730393407782,7.73179092,170.2,170.15,7.73179092]
[1730393407974,5.8746,170.23,170.14,22.42549092]
[1730393407975,7.73179092,170.19,170.14,22.42549092]
[1730393408781,7.73179092,170.18,170.14,14.6937]
[1730393409276,7.73179092,170.2,170.14,28.30299092]
[1730393410089,5.8757,170.19,170.14,28.30299092]
[1730393410291,7.73179092,170.21,170.16,7.73179092]
[1730393410498,13.60649092,170.23,170.17,7.73179092]
[1730393410898,7.73179092,170.22,170.17,7.73179092]
[1730393411198,5.8747,170.23,170.18,23.776884]
[1730393411199,7.73179092,170.23,170.18,23.776884]
[1730393411373,7.73179092,170.23,170.18,31.50867492]
[1730393412516,7.73179092,170.23,170.19,5.8757]
[1730393413200,7.73179092,170.22,170.19,5.8757]
[1730393414805,7.73179092,170.2,170.15,7.73179092]
[1730393414971,7.73179092,170.18,170.14,20.5707]
[1730393415173,7.73179092,170.17,170.14,14.6933]
[1730393415389,7.73179092,170.16,170.14,14.6933]
[1730393415795,7.73179092,170.17,170.14,14.6933]
[1730393416400,7.73179092,170.17,170.14,20.5708]
[1730393416704,7.73179092,170.18,170.14,20.5708]
[1730393416898,7.73179092,170.18,170.14,14.6933]
[1730393417077,13.60789092,170.18,170.14,14.6933]
[1730393417278,7.73179092,170.17,170.14,14.6933]
[1730393417511,7.73179092,170.16,170.11,30.5462]
[1730393417993,7.73179092,170.16,170.11,38.27799092]
[1730393418397,7.73179092,170.16,170.11,44.15639092]
[1730393419192,13.60839092,170.17,170.11,44.15639092]
[1730393419885,13.60839092,170.17,170.12,7.73179092]